[Event "Early-Titled-Tuesday-Blitz-February-20-2024"]
[Site "Chess.com"]
[Date "2024.02.20"]
[Round "2"]
[White "Thjop"]
[Black "OparinGrigoriy"]
[Result "0-1"]
[WhiteElo "2640"]
[BlackElo "3005"]
[TimeControl "180+1"]
[EndTime "8:18:43 PST"]
[Termination "OparinGrigoriy won by resignation"]

1. e4 {[%clk 0:02:59.6]} 1... d6 {[%clk 0:02:58.2]} 2. d4 {[%clk 0:02:59.5]}
2... Nf6 {[%clk 0:02:58.7]} 3. Nc3 {[%clk 0:02:59.6]} 3... g6 {[%clk 0:02:59.3]}
4. Nge2 {[%clk 0:02:59.8]} 4... Bg7 {[%clk 0:02:59.6]} 5. g3 {[%clk 0:03:00.4]}
5... O-O {[%clk 0:02:56.2]} 6. Bg2 {[%clk 0:03:00.2]} 6... e5 {[%clk 0:02:56.8]}
7. O-O {[%clk 0:03:00]} 7... Nc6 {[%clk 0:02:56.4]} 8. h3 {[%clk 0:02:57.4]}
8... exd4 {[%clk 0:02:55.5]} 9. Nxd4 {[%clk 0:02:57.5]} 9... Bd7 {[%clk
0:02:44.2]} 10. Be3 {[%clk 0:02:48.2]} 10... Re8 {[%clk 0:02:43.9]} 11. Re1
{[%clk 0:02:42.2]} 11... a6 {[%clk 0:02:39.9]} 12. a4 {[%clk 0:02:38.3]} 12...
Nb4 {[%clk 0:02:33.7]} 13. Qd2 {[%clk 0:02:30.6]} 13... c5 {[%clk 0:02:33.5]}
14. Nde2 {[%clk 0:02:24.2]} 14... Bc6 {[%clk 0:02:33]} 15. Rad1 {[%clk
0:02:05.6]} 15... Nxe4 {[%clk 0:01:38.3]} 16. Nxe4 {[%clk 0:02:05.1]} 16... Bxe4
{[%clk 0:01:39.2]} 17. Bxe4 {[%clk 0:02:04.6]} 17... Rxe4 {[%clk 0:01:40.1]} 18.
c3 {[%clk 0:02:03.5]} 18... Nc6 {[%clk 0:01:32.2]} 19. Qxd6 {[%clk 0:02:01.5]}
19... Qxd6 {[%clk 0:01:31.3]} 20. Rxd6 {[%clk 0:02:02.1]} 20... Bf8 {[%clk
0:01:30.7]} 21. Rd7 {[%clk 0:01:50.9]} 21... Ne5 {[%clk 0:01:30.5]} 22. Rxb7
{[%clk 0:01:50.1]} 22... Nf3+ {[%clk 0:01:30.6]} 23. Kf1 {[%clk 0:01:49.9]}
23... Nxe1 {[%clk 0:01:31.2]} 24. Kxe1 {[%clk 0:01:50.3]} 24... Rxa4 {[%clk
0:01:31.9]} 25. Nf4 {[%clk 0:01:45.9]} 25... Rd8 {[%clk 0:01:28.2]} 26. Ke2
{[%clk 0:01:41.5]} 26... Re4 {[%clk 0:01:14.1]} 27. Ra7 {[%clk 0:01:33.9]} 27...
c4 {[%clk 0:00:57.5]} 28. Rxa6 {[%clk 0:01:30.3]} 28... Re5 {[%clk 0:00:53.9]}
29. Rc6 {[%clk 0:01:14.1]} 29... Rb5 {[%clk 0:00:52.7]} 30. Rxc4 {[%clk
0:01:11.6]} 30... Rxb2+ {[%clk 0:00:52.6]} 31. Kf3 {[%clk 0:01:12.2]} 31... Bg7
{[%clk 0:00:51.1]} 32. Rc6 {[%clk 0:01:03.8]} 32... Rb3 {[%clk 0:00:48.4]} 33.
Ne2 {[%clk 0:00:58.6]} 33... h5 {[%clk 0:00:47.7]} 34. g4 {[%clk 0:00:49.8]}
34... hxg4+ {[%clk 0:00:46.6]} 35. hxg4 {[%clk 0:00:50.7]} 35... Rb7 {[%clk
0:00:30.4]} 36. Nf4 {[%clk 0:00:46]} 36... Rb3 {[%clk 0:00:29.7]} 37. Ne2 {[%clk
0:00:46.1]} 37... Rbb8 {[%clk 0:00:30]} 38. c4 {[%clk 0:00:42.4]} 38... Rbc8
{[%clk 0:00:28.7]} 39. Rxc8 {[%clk 0:00:32.9]} 39... Rxc8 {[%clk 0:00:29.6]} 40.
c5 {[%clk 0:00:32.7]} 40... Bf8 {[%clk 0:00:30.3]} 41. Ng3 {[%clk 0:00:30.2]}
41... Bxc5 {[%clk 0:00:30.8]} 42. Bxc5 {[%clk 0:00:30.7]} 42... Rxc5 {[%clk
0:00:31.7]} 43. Ne4 {[%clk 0:00:31.4]} 43... Rc6 {[%clk 0:00:32.4]} 44. Kf4
{[%clk 0:00:31.4]} 44... Kf8 {[%clk 0:00:33.1]} 45. g5 {[%clk 0:00:30.4]} 45...
Ke7 {[%clk 0:00:33.8]} 46. f3 {[%clk 0:00:28.8]} 46... Ke6 {[%clk 0:00:33.7]}
47. Ng3 {[%clk 0:00:26.8]} 47... Rc4+ {[%clk 0:00:33.3]} 48. Ke3 {[%clk
0:00:27.4]} 48... Ke5 {[%clk 0:00:32.7]} 49. Ne4 {[%clk 0:00:26.6]} 49... Ra4
{[%clk 0:00:28.3]} 50. f4+ {[%clk 0:00:26.9]} 50... Kf5 {[%clk 0:00:23.5]} 51.
Nd6+ {[%clk 0:00:23.8]} 51... Ke6 {[%clk 0:00:17.9]} 52. Ne4 {[%clk 0:00:20.1]}
52... Rb4 {[%clk 0:00:18.2]} 53. Kf3 {[%clk 0:00:15.1]} 53... Rb3+ {[%clk
0:00:17.5]} 54. Kg4 {[%clk 0:00:15.3]} 54... Rb1 {[%clk 0:00:17.7]} 55. Kf3
{[%clk 0:00:10.6]} 55... Rb4 {[%clk 0:00:16.4]} 56. Ng3 {[%clk 0:00:09.4]} 56...
Rb3+ {[%clk 0:00:15.8]} 57. Kg4 {[%clk 0:00:09.9]} 57... Kd5 {[%clk 0:00:16.6]}
58. f5 {[%clk 0:00:08.9]} 58... Rb4+ {[%clk 0:00:16.6]} 59. Kf3 {[%clk
0:00:09.2]} 59... Ke5 {[%clk 0:00:17]} 60. fxg6 {[%clk 0:00:08.9]} 60... fxg6
{[%clk 0:00:17.9]} 61. Ne2 {[%clk 0:00:09.2]} 61... Kf5 {[%clk 0:00:17.7]} 62.
Ng3+ {[%clk 0:00:09.5]} 62... Kxg5 {[%clk 0:00:18.1]} 63. Ne4+ {[%clk
0:00:10.1]} 63... Rxe4 {[%clk 0:00:17.7]} 64. Kxe4 {[%clk 0:00:10.6]} 64... Kg4
{[%clk 0:00:18.5]} 65. Ke3 {[%clk 0:00:11.5]} 65... Kg3 {[%clk 0:00:19]} 66. Ke2
{[%clk 0:00:12.1]} 66... g5 {[%clk 0:00:19]} 67. Kf1 {[%clk 0:00:13]} 67... Kh2
{[%clk 0:00:19.8]} 68. Kf2 {[%clk 0:00:13.6]} 68... g4 {[%clk 0:00:20.7]} 69.
Kf1 {[%clk 0:00:14.5]} 69... g3 {[%clk 0:00:21.6]} 0-1

[Event "Early-Titled-Tuesday-Blitz-February-20-2024"]
[Site "Chess.com"]
[Date "2024.02.20"]
[Round "2"]
[White "MVM2008"]
[Black "rquery98"]
[Result "0-1"]
[WhiteElo "2464"]
[BlackElo "2764"]
[TimeControl "180+1"]
[EndTime "8:18:43 PST"]
[Termination "rquery98 won by checkmate"]

1. e4 {[%clk 0:03:00.9]} 1... e5 {[%clk 0:02:59.8]} 2. Nf3 {[%clk 0:03:01.1]}
2... Nc6 {[%clk 0:03:00.3]} 3. Nc3 {[%clk 0:03:01.7]} 3... Nf6 {[%clk
0:02:59.9]} 4. Nd5 {[%clk 0:03:02]} 4... Nb4 {[%clk 0:02:36.5]} 5. Nxb4 {[%clk
0:02:49.4]} 5... Bxb4 {[%clk 0:02:36.6]} 6. c3 {[%clk 0:02:49.9]} 6... Ba5
{[%clk 0:02:13.9]} 7. Nxe5 {[%clk 0:02:35.3]} 7... Qe7 {[%clk 0:02:11.6]} 8. d4
{[%clk 0:02:30.2]} 8... O-O {[%clk 0:01:48.9]} 9. Bg5 {[%clk 0:02:14.4]} 9... d6
{[%clk 0:01:35.9]} 10. Bxf6 {[%clk 0:01:46.5]} 10... Qxf6 {[%clk 0:01:20.7]} 11.
Nc4 {[%clk 0:01:42.2]} 11... Bb6 {[%clk 0:01:20.8]} 12. Nxb6 {[%clk 0:01:41.4]}
12... axb6 {[%clk 0:01:21.7]} 13. Bd3 {[%clk 0:01:38.3]} 13... c5 {[%clk
0:01:22]} 14. d5 {[%clk 0:01:34]} 14... Qg6 {[%clk 0:01:19.9]} 15. Qf3 {[%clk
0:01:27.7]} 15... f5 {[%clk 0:01:15.3]} 16. O-O {[%clk 0:01:12.1]} 16... fxe4
{[%clk 0:01:11.2]} 17. Bxe4 {[%clk 0:01:08.9]} 17... Bf5 {[%clk 0:01:02.3]} 18.
Rfe1 {[%clk 0:00:59]} 18... Rf6 {[%clk 0:01:01.8]} 19. Bxf5 {[%clk 0:00:37.7]}
19... Rxf5 {[%clk 0:00:58.4]} 20. Qe4 {[%clk 0:00:35.7]} 20... Qf7 {[%clk
0:00:56.8]} 21. Qe6 {[%clk 0:00:34.9]} 21... Rxd5 {[%clk 0:00:54.7]} 22. Qxf7+
{[%clk 0:00:19.3]} 22... Kxf7 {[%clk 0:00:55.6]} 23. a3 {[%clk 0:00:20]} 23...
Rd2 {[%clk 0:00:45.5]} 24. Rad1 {[%clk 0:00:19.4]} 24... Re8 {[%clk 0:00:36.6]}
25. Kf1 {[%clk 0:00:19.6]} 25... Rxb2 {[%clk 0:00:29.2]} 26. Rxd6 {[%clk
0:00:18.5]} 26... Rxe1+ {[%clk 0:00:29.3]} 27. Kxe1 {[%clk 0:00:19.4]} 27... Ke7
{[%clk 0:00:28.5]} 28. Rd3 {[%clk 0:00:05.5]} 28... Rb3 {[%clk 0:00:29]} 29.
Re3+ {[%clk 0:00:04.6]} 29... Kd6 {[%clk 0:00:29]} 30. c4 {[%clk 0:00:04.3]}
30... Rb2 {[%clk 0:00:23]} 31. Rd3+ {[%clk 0:00:03.7]} 31... Kc6 {[%clk
0:00:20.8]} 32. h4 {[%clk 0:00:02.6]} 32... Rc2 {[%clk 0:00:20.8]} 33. Rg3
{[%clk 0:00:02.3]} 33... g6 {[%clk 0:00:20.5]} 34. h5 {[%clk 0:00:03]} 34...
gxh5 {[%clk 0:00:20.5]} 35. Rh3 {[%clk 0:00:03.5]} 35... Rxc4 {[%clk 0:00:20.2]}
36. Rxh5 {[%clk 0:00:03.9]} 36... Re4+ {[%clk 0:00:20.8]} 37. Kd2 {[%clk
0:00:04]} 37... Re7 {[%clk 0:00:21.7]} 38. Rh6+ {[%clk 0:00:04.1]} 38... Kb5
{[%clk 0:00:20]} 39. Kc3 {[%clk 0:00:04.7]} 39... Ka5 {[%clk 0:00:19.7]} 40. Kc4
{[%clk 0:00:04.2]} 40... Rd7 {[%clk 0:00:17.9]} 41. f3 {[%clk 0:00:03.2]} 41...
Rd4+ {[%clk 0:00:15.5]} 42. Kc3 {[%clk 0:00:03.6]} 42... Rd7 {[%clk 0:00:16.1]}
43. Kc4 {[%clk 0:00:03.7]} 43... Rc7 {[%clk 0:00:16.1]} 44. g4 {[%clk
0:00:03.6]} 44... b5+ {[%clk 0:00:15.3]} 45. Kc3 {[%clk 0:00:03.9]} 45... Ka4
{[%clk 0:00:14.2]} 46. g5 {[%clk 0:00:03]} 46... Kxa3 {[%clk 0:00:13.2]} 47. f4
{[%clk 0:00:03.7]} 47... c4 {[%clk 0:00:11.4]} 48. f5 {[%clk 0:00:03.7]} 48...
b4+ {[%clk 0:00:11.9]} 49. Kd4 {[%clk 0:00:04.3]} 49... c3 {[%clk 0:00:12.2]}
50. g6 {[%clk 0:00:03.7]} 50... hxg6 {[%clk 0:00:12]} 51. fxg6 {[%clk
0:00:04.6]} 51... c2 {[%clk 0:00:12]} 52. Rh3+ {[%clk 0:00:03.8]} 52... Kb2
{[%clk 0:00:11.4]} 53. Rh2 {[%clk 0:00:03.8]} 53... Kb1 {[%clk 0:00:11.9]} 54.
g7 {[%clk 0:00:04]} 54... Rxg7 {[%clk 0:00:11.9]} 55. Kc4 {[%clk 0:00:02.8]}
55... c1=Q+ {[%clk 0:00:11.7]} 56. Kb3 {[%clk 0:00:03.5]} 56... Qa3+ {[%clk
0:00:11.2]} 57. Kc4 {[%clk 0:00:03.9]} 57... Qc3+ {[%clk 0:00:11.8]} 58. Kb5
{[%clk 0:00:04.2]} 58... Rg5+ {[%clk 0:00:12]} 59. Ka4 {[%clk 0:00:04.7]} 59...
Qa3# {[%clk 0:00:12.2]} 0-1

[Event "Early-Titled-Tuesday-Blitz-February-20-2024"]
[Site "Chess.com"]
[Date "2024.02.20"]
[Round "2"]
[White "Nikolakis2014"]
[Black "ragnaroek66"]
[Result "1-0"]
[WhiteElo "2743"]
[BlackElo "2381"]
[TimeControl "180+1"]
[EndTime "8:18:43 PST"]
[Termination "Nikolakis2014 won by resignation"]

1. Nf3 {[%clk 0:03:00]} 1... d5 {[%clk 0:02:59.6]} 2. d4 {[%clk 0:02:58.6]} 2...
Nf6 {[%clk 0:02:58.1]} 3. c4 {[%clk 0:02:56.8]} 3... e6 {[%clk 0:02:57.7]} 4. g3
{[%clk 0:02:56.5]} 4... Be7 {[%clk 0:02:56.4]} 5. Bg2 {[%clk 0:02:56.2]} 5...
O-O {[%clk 0:02:56.9]} 6. O-O {[%clk 0:02:55.7]} 6... dxc4 {[%clk 0:02:57.5]} 7.
Ne5 {[%clk 0:02:53.2]} 7... Nd5 {[%clk 0:02:39.9]} 8. Nxc4 {[%clk 0:02:47.7]}
8... b5 {[%clk 0:02:40]} 9. Ne5 {[%clk 0:02:45.3]} 9... Bb7 {[%clk 0:02:39.6]}
10. a4 {[%clk 0:02:44.8]} 10... bxa4 {[%clk 0:02:37.6]} 11. Nc3 {[%clk
0:02:34.5]} 11... Nxc3 {[%clk 0:02:08.3]} 12. bxc3 {[%clk 0:02:33]} 12... Bxg2
{[%clk 0:02:08.1]} 13. Kxg2 {[%clk 0:02:33.2]} 13... c5 {[%clk 0:02:01]} 14. e3
{[%clk 0:02:32.8]} 14... Qc7 {[%clk 0:01:41]} 15. Qf3 {[%clk 0:02:18.9]} 15...
Nd7 {[%clk 0:01:38.1]} 16. Qc6 {[%clk 0:02:03.7]} 16... Qxc6+ {[%clk 0:01:30]}
17. Nxc6 {[%clk 0:02:03.6]} 17... Bd6 {[%clk 0:01:29.8]} 18. Rxa4 {[%clk
0:02:00.9]} 18... a6 {[%clk 0:01:12.5]} 19. e4 {[%clk 0:01:39.4]} 19... Rfc8
{[%clk 0:01:11.3]} 20. Na5 {[%clk 0:01:38.7]} 20... Nb6 {[%clk 0:01:08.2]} 21.
Ra1 {[%clk 0:01:36.9]} 21... cxd4 {[%clk 0:01:06.2]} 22. cxd4 {[%clk 0:01:36.7]}
22... Bb4 {[%clk 0:01:01.6]} 23. Bf4 {[%clk 0:01:26.8]} 23... Bc3 {[%clk
0:00:58.6]} 24. Ra2 {[%clk 0:01:24.7]} 24... Bxd4 {[%clk 0:00:58.1]} 25. Rb1
{[%clk 0:01:22.5]} 25... f6 {[%clk 0:00:47.1]} 26. Nb3 {[%clk 0:01:09.9]} 26...
Bc3 {[%clk 0:00:45.6]} 27. Rc1 {[%clk 0:00:59.2]} 27... Bb4 {[%clk 0:00:31.4]}
28. Bc7 {[%clk 0:00:35.7]} 28... Nd7 {[%clk 0:00:26.2]} 29. Rac2 {[%clk
0:00:35.7]} 29... a5 {[%clk 0:00:22.6]} 30. Rc4 {[%clk 0:00:25.5]} 30... Ne5
{[%clk 0:00:15.9]} 31. R4c2 {[%clk 0:00:16]} 31... Nd3 {[%clk 0:00:14.2]} 32.
Rd1 {[%clk 0:00:11.5]} 32... Ne5 {[%clk 0:00:14.2]} 33. Nd4 {[%clk 0:00:11]}
33... Kf7 {[%clk 0:00:13.3]} 34. f4 {[%clk 0:00:10.6]} 34... Ng4 {[%clk
0:00:12.2]} 35. Kf3 {[%clk 0:00:10.9]} 35... h5 {[%clk 0:00:10.7]} 36. h3 {[%clk
0:00:10.5]} 36... Nh6 {[%clk 0:00:11.1]} 37. Nb5 {[%clk 0:00:10.4]} 37... Kg8
{[%clk 0:00:09.1]} 38. e5 {[%clk 0:00:10.5]} 38... Nf5 {[%clk 0:00:08.8]} 39. g4
{[%clk 0:00:10]} 39... hxg4+ {[%clk 0:00:08.4]} 40. hxg4 {[%clk 0:00:10.2]}
40... Nh4+ {[%clk 0:00:08.2]} 41. Kg3 {[%clk 0:00:10.5]} 41... Ng6 {[%clk
0:00:09]} 42. exf6 {[%clk 0:00:10.8]} 42... gxf6 {[%clk 0:00:09.6]} 43. Rd7
{[%clk 0:00:10.7]} 43... Nf8 {[%clk 0:00:08.5]} 44. Rd3 {[%clk 0:00:09.6]} 44...
a4 {[%clk 0:00:07.7]} 45. Rd4 {[%clk 0:00:09.5]} 45... Be7 {[%clk 0:00:07.1]}
46. Ra2 {[%clk 0:00:08.7]} 46... a3 {[%clk 0:00:07.4]} 47. Bd6 {[%clk
0:00:09.1]} 47... Bxd6 {[%clk 0:00:07.2]} 48. Rxd6 {[%clk 0:00:09.1]} 48... Rc5
{[%clk 0:00:05.8]} 49. Nd4 {[%clk 0:00:07.1]} 49... Kf7 {[%clk 0:00:05.5]} 50.
Nf3 {[%clk 0:00:06.7]} 50... Rc3 {[%clk 0:00:05.1]} 51. Kg2 {[%clk 0:00:05.9]}
51... Ke7 {[%clk 0:00:05.6]} 52. Rdd2 {[%clk 0:00:05.9]} 52... Nd7 {[%clk
0:00:05]} 53. Re2 {[%clk 0:00:06.2]} 53... Nc5 {[%clk 0:00:04.8]} 54. Nd4 {[%clk
0:00:06.3]} 54... Kf7 {[%clk 0:00:04.2]} 55. Nb5 {[%clk 0:00:05.6]} 55... Rc4
{[%clk 0:00:03.8]} 56. Nd6+ {[%clk 0:00:05.4]} 56... Ke7 {[%clk 0:00:03]} 57.
Nxc4 {[%clk 0:00:06]} 57... Ra4 {[%clk 0:00:03.5]} 58. Ne3 {[%clk 0:00:05.9]}
58... Rxf4 {[%clk 0:00:03.6]} 59. Nd5+ {[%clk 0:00:06.1]} 59... Kf7 {[%clk
0:00:03.4]} 60. Nxf4 {[%clk 0:00:06.6]} 1-0

[Event "Early-Titled-Tuesday-Blitz-February-20-2024"]
[Site "Chess.com"]
[Date "2024.02.20"]
[Round "2"]
[White "PattyCastillo"]
[Black "atalz0"]
[Result "0-1"]
[WhiteElo "1931"]
[BlackElo "2415"]
[TimeControl "180+1"]
[EndTime "8:18:45 PST"]
[Termination "atalz0 won on time"]

1. d4 {[%clk 0:02:59.7]} 1... Nf6 {[%clk 0:02:59.6]} 2. Nf3 {[%clk 0:02:59.9]}
2... e6 {[%clk 0:02:59.6]} 3. e3 {[%clk 0:03:00.1]} 3... c5 {[%clk 0:02:57.2]}
4. Bd3 {[%clk 0:02:59.6]} 4... d5 {[%clk 0:02:55.9]} 5. b3 {[%clk 0:02:59.7]}
5... cxd4 {[%clk 0:02:52.4]} 6. exd4 {[%clk 0:02:59.5]} 6... Be7 {[%clk
0:02:52]} 7. Bb2 {[%clk 0:02:59.2]} 7... O-O {[%clk 0:02:51.9]} 8. O-O {[%clk
0:02:58.4]} 8... b6 {[%clk 0:02:51.3]} 9. Nbd2 {[%clk 0:02:58]} 9... Ba6 {[%clk
0:02:46.8]} 10. c4 {[%clk 0:02:53]} 10... Nc6 {[%clk 0:02:35.2]} 11. a3 {[%clk
0:02:49]} 11... Rc8 {[%clk 0:02:34.8]} 12. Qe2 {[%clk 0:02:47.9]} 12... Qc7
{[%clk 0:02:24.9]} 13. Rac1 {[%clk 0:02:46.3]} 13... Qf4 {[%clk 0:02:16.5]} 14.
g3 {[%clk 0:02:41]} 14... Qg4 {[%clk 0:02:14.8]} 15. Qe3 {[%clk 0:02:04.6]}
15... dxc4 {[%clk 0:01:44.4]} 16. bxc4 {[%clk 0:02:03.5]} 16... Rfe8 {[%clk
0:01:31.3]} 17. Ne5 {[%clk 0:02:02.6]} 17... Nxe5 {[%clk 0:01:22.9]} 18. dxe5
{[%clk 0:01:58.7]} 18... Nd7 {[%clk 0:01:20.8]} 19. Ne4 {[%clk 0:01:47]} 19...
Qh5 {[%clk 0:01:15.9]} 20. f4 {[%clk 0:01:18.4]} 20... Bb7 {[%clk 0:01:09.5]}
21. Rf2 {[%clk 0:00:56.9]} 21... Nc5 {[%clk 0:01:02.6]} 22. Nd6 {[%clk
0:00:49.9]} 22... Rcd8 {[%clk 0:00:46.5]} 23. Rcf1 {[%clk 0:00:36.1]} 23... Bxd6
{[%clk 0:00:39.4]} 24. exd6 {[%clk 0:00:36.2]} 24... Rxd6 {[%clk 0:00:40.3]} 25.
Bb1 {[%clk 0:00:26.9]} 25... Red8 {[%clk 0:00:35.2]} 26. Qe5 {[%clk 0:00:21.3]}
26... Qxe5 {[%clk 0:00:31.1]} 27. Bxe5 {[%clk 0:00:20.7]} 27... Rd2 {[%clk
0:00:29.9]} 28. Bc7 {[%clk 0:00:14.6]} 28... R8d7 {[%clk 0:00:29.1]} 29. Rxd2
{[%clk 0:00:13.9]} 29... Rxd2 {[%clk 0:00:30]} 30. Rf2 {[%clk 0:00:09.6]} 30...
Rd1+ {[%clk 0:00:29.8]} 31. Rf1 {[%clk 0:00:09.6]} 31... Rd2 {[%clk 0:00:27.5]}
32. Rf2 {[%clk 0:00:09.9]} 32... Rd7 {[%clk 0:00:27.7]} 33. Be5 {[%clk
0:00:09.1]} 33... f6 {[%clk 0:00:16.8]} 34. Bc3 {[%clk 0:00:07.2]} 34... Rd1+
{[%clk 0:00:16.2]} 35. Rf1 {[%clk 0:00:06.8]} 35... Rxf1+ {[%clk 0:00:16.9]} 36.
Kxf1 {[%clk 0:00:06.8]} 36... Be4 {[%clk 0:00:17.6]} 37. Bxe4 {[%clk 0:00:06.1]}
37... Nxe4 {[%clk 0:00:18.1]} 38. Bb4 {[%clk 0:00:06.5]} 38... Kf7 {[%clk
0:00:17.9]} 39. Ke2 {[%clk 0:00:05.9]} 39... Nc5 {[%clk 0:00:17.5]} 40. Bxc5
{[%clk 0:00:05.7]} 40... bxc5 {[%clk 0:00:17.4]} 41. Kd3 {[%clk 0:00:06.1]}
41... Ke7 {[%clk 0:00:17.4]} 42. Ke4 {[%clk 0:00:06.4]} 42... Kd6 {[%clk
0:00:17.5]} 43. g4 {[%clk 0:00:06.8]} 43... g6 {[%clk 0:00:17.5]} 44. h4 {[%clk
0:00:06.9]} 44... h6 {[%clk 0:00:17.4]} 45. f5 {[%clk 0:00:07.1]} 45... gxf5+
{[%clk 0:00:17.1]} 46. gxf5 {[%clk 0:00:07.5]} 46... e5 {[%clk 0:00:17.2]} 47.
a4 {[%clk 0:00:06.7]} 47... Kc6 {[%clk 0:00:15.5]} 48. a5 {[%clk 0:00:05.5]}
48... h5 {[%clk 0:00:14.9]} 49. a6 {[%clk 0:00:03.8]} 49... Kb6 {[%clk
0:00:15.1]} 50. Kd5 {[%clk 0:00:04.1]} 50... Kxa6 {[%clk 0:00:15.5]} 51. Ke6
{[%clk 0:00:03.2]} 51... e4 {[%clk 0:00:15.8]} 52. Kxf6 {[%clk 0:00:03.4]} 52...
e3 {[%clk 0:00:16.7]} 53. Kg7 {[%clk 0:00:03.9]} 53... e2 {[%clk 0:00:17.6]} 54.
f6 {[%clk 0:00:04.4]} 54... e1=Q {[%clk 0:00:18]} 55. f7 {[%clk 0:00:05]} 55...
Qg3+ {[%clk 0:00:17.7]} 56. Kh8 {[%clk 0:00:04.5]} 56... Qf3 {[%clk 0:00:15.4]}
57. Kg8 {[%clk 0:00:04.3]} 57... Qg4+ {[%clk 0:00:15.7]} 58. Kh8 {[%clk
0:00:04.4]} 58... Qf5 {[%clk 0:00:15.6]} 59. Kg7 {[%clk 0:00:02.7]} 59... Qe5+
{[%clk 0:00:14.2]} 60. Kg8 {[%clk 0:00:02.3]} 60... Qe6 {[%clk 0:00:13.7]} 61.
Kg7 {[%clk 0:00:01.9]} 61... Qg4+ {[%clk 0:00:12.7]} 62. Kh8 {[%clk 0:00:02.1]}
62... Qf4 {[%clk 0:00:11.7]} 0-1

[Event "Early-Titled-Tuesday-Blitz-February-20-2024"]
[Site "Chess.com"]
[Date "2024.02.20"]
[Round "2"]
[White "Kirill_Klukin"]
[Black "Ordekalog"]
[Result "1/2-1/2"]
[WhiteElo "2858"]
[BlackElo "2586"]
[TimeControl "180+1"]
[EndTime "8:18:47 PST"]
[Termination "Game drawn by repetition"]

1. d4 {[%clk 0:03:00.9]} 1... d5 {[%clk 0:02:59.1]} 2. c4 {[%clk 0:03:01]} 2...
e6 {[%clk 0:02:58.8]} 3. Nc3 {[%clk 0:03:01.2]} 3... c5 {[%clk 0:02:59.4]} 4.
cxd5 {[%clk 0:03:00.4]} 4... exd5 {[%clk 0:02:59.6]} 5. Nf3 {[%clk 0:03:00.6]}
5... Nc6 {[%clk 0:02:59.7]} 6. g3 {[%clk 0:02:59.4]} 6... Nf6 {[%clk 0:02:59.7]}
7. Bg2 {[%clk 0:03:00]} 7... Be7 {[%clk 0:03:00]} 8. O-O {[%clk 0:03:00.7]} 8...
O-O {[%clk 0:03:00.4]} 9. Bg5 {[%clk 0:03:01.2]} 9... cxd4 {[%clk 0:02:59.7]}
10. Nxd4 {[%clk 0:03:01.4]} 10... h6 {[%clk 0:03:00]} 11. Bxf6 {[%clk
0:02:48.6]} 11... Bxf6 {[%clk 0:02:59.2]} 12. Nb3 {[%clk 0:02:49.4]} 12... d4
{[%clk 0:02:52]} 13. Nd5 {[%clk 0:02:49.7]} 13... Bg4 {[%clk 0:02:39.8]} 14. Rc1
{[%clk 0:02:39.6]} 14... Re8 {[%clk 0:02:38]} 15. Re1 {[%clk 0:02:20.6]} 15...
Bg5 {[%clk 0:02:18.7]} 16. f4 {[%clk 0:02:11.5]} 16... Bf6 {[%clk 0:02:17.4]}
17. Nxf6+ {[%clk 0:02:06.7]} 17... Qxf6 {[%clk 0:02:18]} 18. Bxc6 {[%clk
0:02:07.2]} 18... bxc6 {[%clk 0:02:18]} 19. Qxd4 {[%clk 0:02:07.8]} 19... Qg6
{[%clk 0:02:11.7]} 20. e4 {[%clk 0:01:43]} 20... Rad8 {[%clk 0:02:10.9]} 21. Qe3
{[%clk 0:01:43]} 21... h5 {[%clk 0:02:00.5]} 22. Rc5 {[%clk 0:01:29.3]} 22...
Qd6 {[%clk 0:01:45.1]} 23. h3 {[%clk 0:01:13.2]} 23... Bxh3 {[%clk 0:01:33.9]}
24. Rxh5 {[%clk 0:01:13.6]} 24... Bg4 {[%clk 0:01:33.9]} 25. Rh4 {[%clk
0:01:14]} 25... Be6 {[%clk 0:01:33.9]} 26. Nc5 {[%clk 0:00:47.4]} 26... Bxa2
{[%clk 0:01:32.4]} 27. Nb7 {[%clk 0:00:47.6]} 27... Qb4 {[%clk 0:01:17.3]} 28.
Nxd8 {[%clk 0:00:46]} 28... Rxd8 {[%clk 0:01:18.2]} 29. Qc3 {[%clk 0:00:39.4]}
29... Qb6+ {[%clk 0:01:18]} 30. Kg2 {[%clk 0:00:39.4]} 30... Rb8 {[%clk
0:01:10.4]} 31. Reh1 {[%clk 0:00:29.3]} 31... Qxb2+ {[%clk 0:01:08.5]} 32. Qxb2
{[%clk 0:00:30.2]} 32... Rxb2+ {[%clk 0:01:08.4]} 33. Kf3 {[%clk 0:00:31]} 33...
g6 {[%clk 0:00:40.5]} 34. Rh8+ {[%clk 0:00:25.9]} 34... Kg7 {[%clk 0:00:40.8]}
35. Ra8 {[%clk 0:00:14.8]} 35... Rb3+ {[%clk 0:00:37.5]} 36. Kf2 {[%clk
0:00:15.1]} 36... Rb2+ {[%clk 0:00:36.6]} 37. Ke3 {[%clk 0:00:15.5]} 37... Rb3+
{[%clk 0:00:36.8]} 38. Kd4 {[%clk 0:00:15.5]} 38... Rxg3 {[%clk 0:00:35.3]} 39.
Rxa7 {[%clk 0:00:15.6]} 39... Be6 {[%clk 0:00:35.3]} 40. Rc1 {[%clk 0:00:14.9]}
40... Rf3 {[%clk 0:00:30.6]} 41. Rxc6 {[%clk 0:00:14.6]} 41... Kf6 {[%clk
0:00:25.5]} 42. e5+ {[%clk 0:00:06]} 42... Kf5 {[%clk 0:00:25.6]} 43. Kc5 {[%clk
0:00:02.6]} 43... Rxf4 {[%clk 0:00:24.9]} 44. Kd6 {[%clk 0:00:03.2]} 44... Rd4+
{[%clk 0:00:25.1]} 45. Ke7 {[%clk 0:00:03.8]} 45... Kxe5 {[%clk 0:00:24.9]} 46.
Rc5+ {[%clk 0:00:04.3]} 46... Bd5 {[%clk 0:00:21.8]} 47. Rc1 {[%clk 0:00:04.4]}
47... f5 {[%clk 0:00:20.7]} 48. Re1+ {[%clk 0:00:04.2]} 48... Be4 {[%clk
0:00:21]} 49. Kf7 {[%clk 0:00:02.5]} 49... g5 {[%clk 0:00:15.2]} 50. Kg6 {[%clk
0:00:03.2]} 50... g4 {[%clk 0:00:15.4]} 51. Kg5 {[%clk 0:00:03.7]} 51... Rd5
{[%clk 0:00:14.1]} 52. Re7+ {[%clk 0:00:04.3]} 52... Kd6 {[%clk 0:00:13.5]} 53.
R7xe4 {[%clk 0:00:04]} 53... fxe4+ {[%clk 0:00:13]} 54. Kxg4 {[%clk 0:00:04.7]}
54... Ke5 {[%clk 0:00:13.1]} 55. Kg3 {[%clk 0:00:03.9]} 55... Rd2 {[%clk
0:00:13.1]} 56. Ra1 {[%clk 0:00:03.8]} 56... Kd4 {[%clk 0:00:13]} 57. Kf4 {[%clk
0:00:03.7]} 57... Rf2+ {[%clk 0:00:12.9]} 58. Kg3 {[%clk 0:00:04.4]} 58... Rf3+
{[%clk 0:00:11.1]} 59. Kg2 {[%clk 0:00:04.6]} 59... Ke3 {[%clk 0:00:09.3]} 60.
Ra3+ {[%clk 0:00:04.9]} 60... Ke2 {[%clk 0:00:09.5]} 61. Ra2+ {[%clk 0:00:05.5]}
61... Kd1 {[%clk 0:00:09.6]} 62. Ra1+ {[%clk 0:00:05.8]} 62... Kd2 {[%clk
0:00:09.9]} 63. Ra2+ {[%clk 0:00:06.3]} 63... Kd1 {[%clk 0:00:09.6]} 64. Ra1+
{[%clk 0:00:06.8]} 64... Ke2 {[%clk 0:00:10.2]} 65. Ra2+ {[%clk 0:00:07.3]}
65... Ke3 {[%clk 0:00:10]} 66. Ra3+ {[%clk 0:00:07.8]} 66... Ke2 {[%clk
0:00:09.5]} 67. Ra2+ {[%clk 0:00:08.4]} 1/2-1/2